bitfinex/quotes_ETHUSD_20251124
["timestamp","ask_amount","ask_price","bid_price","bid_amount"]
[1763950652385,0.90699264,2868.5,2867.8,0.001]
[1763950652538,0.46997282,2868.7,2867.8,0.101]
[1763950652734,0.90699264,2868.7,2867.8,0.101]
[1763950652980,0.1758,2868.9,2868.1,0.1]
[1763950653176,0.1545,2869.1,2867.9,0.4738]
[1763950653403,3.63918543,2869.7,2869.0,0.1844]
[1763950653738,3.63921295,2869.7,2869.1,0.1]
[1763950653890,3.63921295,2869.7,2868.0,0.1844]
[1763950653891,2.55517291,2869.6,2868.0,0.6582]
[1763950654075,2.55517291,2869.6,2868.3,0.1]
[1763950654275,2.55517291,2869.6,2868.0,0.6582]
[1763950654276,4.52392821,2869.3,2868.0,0.1844]
[1763950654475,0.4832,2869.5,2868.1,0.4738]
[1763950654713,0.25551729,2869.4,2868.5,0.1]
[1763950655071,0.90699264,2869.3,2868.5,0.1]
[1763950655397,5.91412085,2869.3,2868.0,0.1844]
[1763950655586,0.4832,2869.2,2868.0,0.1844]
[1763950655791,5.43092085,2869.3,2868.3,0.1]
[1763950656145,1.51738045,2869.2,2868.0,0.5882]
[1763950656616,1.51738045,2869.2,2867.8,0.101]
[1763950656617,0.4832,2869.1,2867.8,0.101]
[1763950656782,0.4832,2869.1,2867.9,0.1]
[1763950656980,0.4832,2869.1,2867.8,0.001]
[1763950657285,4.39264916,2868.9,2868.0,0.1]
[1763950657472,0.78782691,2868.8,2868.0,0.1]
[1763950657674,1.26552691,2868.8,2867.8,0.001]
[1763950657902,0.90699264,2868.5,2867.8,0.001]
[1763950658102,0.90699264,2868.6,2867.8,0.001]
[1763950658310,1.38469264,2868.6,2867.8,0.001]
[1763950658510,0.37715336,2868.5,2867.8,0.001]
[1763950658703,0.37715336,2868.5,2867.6,0.1]
[1763950658901,0.37715336,2868.5,2867.4,0.46117918]
[1763950659208,0.90699264,2868.3,2867.1,0.1844]
[1763950659614,0.90699264,2868.3,2867.3,0.1]
[1763950659809,0.83572209,2868.2,2867.3,0.1]
[1763950660033,3.48604373,2868.6,2867.1,0.1844]
[1763950660034,4.27361875,2868.8,2868.2,0.1901]
[1763950660191,0.4777,2868.8,2867.9,0.1]
[1763950660373,0.4777,2868.7,2867.1,0.1844]
[1763950660577,0.4777,2868.7,2867.2,0.1]
[1763950661208,10.45806315,2868.6,2867.2,0.1]
[1763950661418,1.09357632,2868.5,2867.2,0.1]
[1763950661781,0.4777,2868.8,2867.6,0.1]
[1763950661983,0.4777,2868.8,2867.3,0.4759]
[1763950662228,0.4777,2868.8,2867.2,3.48767346]
[1763950662229,3.88173458,2869.6,2867.4,0.51077479]
[1763950662517,4.32254493,2869.4,2868.0,0.1]
[1763950662689,0.90699264,2869.3,2868.0,0.1]
[1763950662901,0.93604016,2869.5,2868.1,0.1901]
[1763950662902,0.45834016,2869.5,2868.1,0.1901]
[1763950663100,0.45834016,2869.5,2868.1,0.666]
[1763950663425,0.6322,2869.7,2868.4,0.1]
[1763950663426,0.002,2869.1,2868.4,0.1]
[1763950663987,0.4797,2869.1,2868.1,0.2901]
[1763950664187,0.4797,2869.1,2867.7,0.4759]
[1763950664619,0.4797,2869.1,2867.8,0.1]
[1763950665406,0.90699264,2868.9,2867.6,0.1]
[1763950665603,0.90699264,2868.9,2867.2,0.4759]
[1763950665604,1.13635977,2868.8,2867.2,0.4759]
[1763950665810,1.66395977,2868.8,2867.1,0.2844]
[1763950666038,0.90699264,2868.6,2867.1,0.2844]
[1763950666193,2.47258,2868.5,2867.1,0.2844]
[1763950666393,0.4777,2868.4,2867.1,0.2844]
[1763950666628,0.4777,2868.4,2867.1,0.7603]
[1763950666792,2.09325241,2868.8,2867.6,0.1]
[1763950666997,2.09325241,2868.8,2867.4,0.1]
[1763950666998,0.4777,2868.6,2867.4,0.1]
[1763950667301,0.90699264,2868.4,2867.2,0.1]
[1763950667934,0.4777,2868.3,2867.1,0.1844]
[1763950668465,0.90699264,2868.2,2867.0,0.001]
[1763950668659,0.57072376,2868.1,2867.0,0.001]
[1763950668864,0.4777,2868.2,2867.0,0.001]
[1763950669039,0.4777,2868.2,2867.1,0.1901]
[1763950669361,0.4777,2868.2,2867.1,0.2901]
[1763950669562,0.90699264,2868.0,2867.1,0.2901]
[1763950669763,5.20297329,2869.1,2867.1,0.766]
[1763950670065,0.90699264,2868.6,2867.8,0.1]
[1763950670259,1.26557917,2868.5,2867.1,0.1901]
[1763950670479,1.26557917,2868.5,2867.2,0.1]
[1763950670639,1.38469264,2868.4,2867.2,0.1]
[1763950671526,0.90699264,2868.2,2867.2,0.5759]
[1763950671760,0.90699264,2868.2,2867.2,0.4759]
[1763950671938,0.8357464,2868.1,2867.2,0.4759]
[1763950672137,0.8357464,2868.1,2867.1,0.2901]
[1763950672328,1.3134464,2868.1,2867.1,0.1901]
[1763950673040,0.4777,2868.0,2867.0,0.001]
[1763950673440,0.1932,2867.9,2867.0,0.001]
[1763950673629,0.90699264,2867.7,2867.0,0.001]
[1763950673825,0.78809797,2867.6,2867.0,0.001]
[1763950674663,0.4777,2867.5,2867.0,0.001]
[1763950674871,0.78809797,2867.6,2867.1,0.1901]
[1763950675040,0.90699264,2867.8,2867.0,0.001]
[1763950675243,7.64464894,2867.9,2867.1,0.1901]
[1763950675244,0.1932,2867.9,2867.1,0.1901]
[1763950675427,1.38469264,2867.8,2867.0,0.001]
[1763950675630,0.90699264,2867.6,2867.0,0.001]
[1763950676251,1.38469264,2867.6,2867.0,0.001]
[1763950676444,1.66230379,2867.5,2867.0,0.001]
[1763950676841,1.18460379,2867.5,2867.0,0.001]
[1763950677042,3.48702885,2867.8,2867.1,0.1901]
[1763950677244,0.90699264,2867.8,2867.1,0.1901]
[1763950677543,4.58706534,2867.9,2867.1,0.1901]
[1763950677748,8.07393804,2867.9,2867.0,0.001]
[1763950677931,8.07393804,2867.9,2867.1,0.1901]
[1763950678137,1.2850938,2867.8,2867.0,0.001]
[1763950678769,0.4777,2867.7,2867.0,0.001]
[1763950679357,2.1506,2867.6,2867.0,0.001]
[1763950679562,0.4777,2867.7,2867.0,0.001]
[1763950679870,10.46207496,2867.5,2867.0,0.001]
[1763950680078,1.5696563,2867.4,2867.0,0.001]
[1763950680280,2.0254563,2867.4,2867.0,0.001]
[1763950680581,0.4558,2867.3,2867.0,0.001]
[1763950680732,1.96654867,2867.4,2867.0,0.001]
[1763950680933,0.90699264,2867.5,2867.0,0.001]
[1763950681137,0.4558,2867.4,2867.0,0.001]
[1763950681376,5.037603,2867.3,2867.0,0.001]
[1763950681578,0.4558,2867.4,2866.8,0.001]
[1763950681579,6.971029,2867.1,2866.8,0.001]
[1763950681744,16.7679698,2866.9,2866.8,0.001]
[1763950681943,9.6295688,2866.9,2866.8,0.001]
[1763950682464,0.90699264,2866.9,2866.8,0.001]
[1763950682795,3.4871151,2867.7,2866.8,0.4847]
[1763950682992,0.4558,2866.9,2866.8,0.001]
[1763950683473,13.20888863,2866.9,2866.8,0.001]
[1763950683678,2.6836815,2866.9,2866.8,0.001]
[1763950683844,8.33130181,2866.9,2866.8,0.001]
[1763950684044,9.13695881,2866.9,2866.8,0.001]
[1763950684458,4.85088081,2866.9,2866.8,0.001]
[1763950684642,4.39508081,2866.9,2866.8,0.001]
[1763950685572,7.38091081,2866.9,2866.8,0.001]
[1763950685772,5.93776938,2866.9,2866.8,0.001]
[1763950686151,5.48196938,2866.9,2866.8,0.001]
[1763950686353,0.90699264,2866.9,2866.8,0.001]
[1763950686544,3.48760157,2867.3,2866.8,0.001]
[1763950686746,0.90699264,2867.2,2866.8,0.001]
[1763950687476,0.4615,2867.1,2866.8,0.001]
[1763950687974,6.97593302,2867.0,2866.8,0.001]
[1763950688142,5.8912473,2866.9,2866.8,0.001]
[1763950688480,8.68016494,2866.9,2866.8,0.001]
[1763950688895,0.90699264,2866.8,2866.5,0.001]
[1763950689177,2.124867,2866.7,2866.5,0.001]
[1763950689483,0.4615,2866.7,2866.5,0.001]
[1763950689859,4.39544585,2866.6,2866.5,0.001]
[1763950690060,5.22997462,2866.6,2866.5,0.001]
[1763950691058,0.54756276,2867.3,2866.5,0.4962]
[1763950691254,4.03517087,2867.3,2866.5,0.4962]
[1763950691457,4.77868799,2867.6,2866.5,0.4962]
[1763950691647,3.48663718,2868.1,2867.5,0.1824]
[1763950691869,4.78068799,2868.2,2867.5,0.1824]
[1763950691870,0.002,2868.2,2867.5,0.7776]
[1763950692073,0.002,2868.2,2866.5,0.001]
[1763950692074,0.002,2868.2,2867.2,0.1824]
[1763950692259,0.002,2868.2,2866.5,0.4962]
[1763950692260,4.77868799,2867.8,2866.5,0.4962]
[1763950692460,0.90699264,2867.6,2866.5,0.4962]
[1763950692665,2.730112,2867.6,2866.5,0.4962]
[1763950692990,1.38486144,2867.7,2866.5,0.5962]
[1763950693199,1.38486144,2867.7,2866.7,0.1]
[1763950693563,1.38486144,2867.7,2866.8,0.4952]
[1763950693861,3.48735832,2867.5,2866.8,0.4952]
[1763950694061,0.90699264,2867.4,2866.5,0.001]
[1763950694464,0.90699264,2867.5,2866.5,0.4962]
[1763950694761,1.30388501,2867.5,2866.5,0.4962]
[1763950694990,0.90699264,2867.5,2866.5,0.5962]
[1763950695293,3.48699351,2867.8,2866.8,0.1]
[1763950695795,3.48699351,2867.8,2866.9,0.4952]
[1763950695998,0.90699264,2867.7,2866.5,0.001]
[1763950696373,0.90699264,2867.7,2866.5,0.4962]
[1763950696772,0.90699264,2867.7,2866.6,0.1]
[1763950696975,8.99058749,2867.9,2866.8,0.1]
[1763950697297,0.4615,2868.7,2867.2,0.1]
[1763950697689,0.90699264,2868.7,2867.5,0.1]
[1763950697886,4.82858799,2868.8,2867.5,0.1]
[1763950698093,8.31439745,2868.8,2867.6,0.4952]
[1763950698288,0.4635,2869.1,2868.1,0.1824]
[1763950698473,3.48579059,2868.8,2868.1,0.1824]
[1763950698871,3.48743378,2869.1,2868.1,0.6776]
[1763950699106,0.002,2869.1,2868.1,0.6776]
[1763950699293,4.39440743,2869.1,2868.1,0.7776]
[1763950699495,4.39440743,2869.1,2867.3,3.6699637]
[1763950699496,3.4858189,2868.8,2867.6,0.4952]
[1763950699695,6.9716378,2868.8,2867.7,0.1]
[1763950700070,6.9716378,2868.8,2867.8,0.4952]
[1763950700274,0.90699264,2868.7,2867.4,0.4952]
[1763950700475,1.36849264,2868.7,2867.4,0.4952]
[1763950700677,3.48577802,2868.8,2867.4,0.4952]
[1763950700878,0.90699264,2868.7,2867.4,0.4952]
[1763950701120,0.4615,2868.4,2867.3,0.1824]
[1763950701285,0.4615,2868.4,2866.1,3.67145199]
[1763950701286,0.90699264,2868.4,2867.1,0.1824]
[1763950701476,2.03568,2868.0,2866.8,0.001]
[1763950701804,0.34041726,2867.9,2866.8,0.001]
[1763950702011,0.90699264,2867.7,2866.8,0.4962]
[1763950702178,3.4868354,2868.0,2867.0,0.1]
[1763950702590,3.4868354,2868.0,2867.1,0.1824]
[1763950702785,0.002,2868.2,2867.1,0.1824]
[1763950703010,0.90699264,2868.1,2867.3,0.1]
[1763950703212,0.002,2868.2,2867.2,0.4952]
[1763950703519,0.002,2868.2,2868.1,0.1824]
[1763950703881,0.002,2868.2,2868.1,0.6776]
[1763950704077,0.002,2868.2,2868.1,0.7776]
[1763950704775,0.002,2868.2,2867.7,0.1824]
[1763950705211,0.002,2868.2,2867.7,0.6776]
[1763950705392,0.002,2868.2,2867.7,0.7776]
[1763950705588,0.002,2868.2,2867.8,0.4952]
[1763950705817,0.002,2868.2,2867.7,0.1824]
[1763950706022,0.002,2868.2,2867.1,0.1824]
[1763950706176,0.002,2868.2,2868.1,0.2824]
[1763950706377,0.002,2868.2,2868.1,0.1824]
[1763950706577,0.002,2868.2,2867.8,0.1824]
[1763950706808,0.002,2868.2,2867.8,0.2824]
[1763950706989,0.002,2868.2,2867.9,0.5952]
[1763950707313,0.002,2868.2,2868.0,0.1]
[1763950707741,0.002,2868.2,2868.1,0.5952]
[1763950710182,0.002,2868.2,2868.1,0.4952]
[1763950710578,0.002,2868.2,2867.8,0.7776]
[1763950710882,0.002,2868.2,2867.8,0.1824]
[1763950711083,0.002,2868.2,2867.4,0.4952]
[1763950711356,0.002,2868.2,2867.7,0.1]
[1763950711481,0.002,2868.2,2867.5,0.4952]
[1763950711682,0.002,2868.2,2867.6,0.1]
[1763950711877,0.002,2868.2,2867.7,0.1]
[1763950712483,0.002,2868.2,2867.3,0.1]
[1763950713314,0.4635,2868.5,2867.3,0.1]
[1763950713315,0.002,2868.5,2868.1,0.1824]
[1763950713512,0.002,2868.8,2868.2,0.4952]
[1763950713732,0.18246354,2870.7,2868.7,0.1]
[1763950714021,0.18246354,2870.7,2868.2,0.4952]
[1763950714022,4.12779228,2870.6,2869.3,0.1]
[1763950714194,1.42361202,2870.5,2869.3,0.1]
[1763950714397,1.42361202,2870.5,2868.1,0.1824]
[1763950714398,1.88511202,2870.5,2869.1,0.1]
[1763950714596,1.88511202,2870.5,2868.9,0.6776]
[1763950714597,4.77868799,2870.1,2868.9,0.6776]
[1763950714820,0.90699264,2870.0,2868.5,0.1]
[1763950715019,0.56856806,2869.9,2868.5,0.1]
[1763950715193,0.90699264,2869.7,2868.2,0.2824]
[1763950715392,0.90699264,2869.4,2868.2,0.1824]
[1763950715796,3.4826,2869.1,2867.7,0.1824]
[1763950716119,0.90699264,2868.9,2867.7,0.2824]
[1763950716430,0.78780627,2868.8,2867.6,0.1]
[1763950716755,0.78780627,2868.8,2866.8,0.4905]
[1763950716756,4.77868799,2868.3,2866.8,0.4905]
[1763950716882,0.90699264,2868.2,2866.8,0.001]
[1763950717085,0.90699264,2868.0,2866.8,0.001]
[1763950717282,0.70602868,2867.9,2866.8,0.001]
[1763950717529,0.6571,2868.0,2866.8,0.001]
[1763950717738,0.1947,2868.0,2866.8,0.001]
[1763950718036,0.6571,2868.0,2866.8,0.001]
[1763950718241,0.90699264,2867.8,2866.8,0.001]
[1763950718643,0.4624,2867.7,2866.8,0.001]
[1763950718813,0.61480806,2867.6,2866.8,0.001]
[1763950719014,0.61480806,2867.6,2866.9,0.4895]
[1763950719210,0.4624,2867.8,2866.8,0.001]
[1763950719425,0.90699264,2867.7,2866.8,0.001]
[1763950719859,0.4624,2867.6,2866.8,0.001]
[1763950720064,0.90699264,2867.7,2866.8,0.001]
[1763950720209,4.39414519,2867.7,2866.8,0.001]
[1763950720410,0.91728332,2867.6,2866.8,0.001]
[1763950720665,1.37968332,2867.6,2866.8,0.001]
[1763950720841,0.4624,2867.5,2866.8,0.001]
[1763950721014,1.82427596,2867.6,2866.8,0.001]
[1763950721667,0.4624,2867.5,2866.8,0.001]
[1763950721954,0.2286676,2867.4,2866.8,0.001]
[1763950722112,0.183,2866.9,2866.8,0.001]
[1763950722312,3.67108817,2866.9,2866.8,0.001]
[1763950722526,5.04048081,2866.9,2866.8,0.001]
[1763950722744,3.71615752,2867.4,2866.8,0.001]
[1763950722946,1.27860839,2867.3,2866.8,0.001]
[1763950723123,1.74100839,2867.3,2866.8,0.001]
[1763950723319,0.4624,2867.2,2866.8,0.001]
[1763950723616,0.90699264,2867.6,2866.8,0.001]
[1763950724291,0.90699264,2867.4,2866.8,0.001]
[1763950724456,0.78817093,2867.3,2866.8,0.001]
[1763950725310,3.67012592,2867.7,2866.9,0.4849]
[1763950725311,0.183,2867.7,2866.9,0.4849]
[1763950725716,0.1947,2868.0,2867.1,0.1]
[1763950725915,0.1947,2868.8,2867.6,0.1]
[1763950725916,0.1906,2868.5,2867.6,0.1]
[1763950726149,0.1906,2868.5,2867.2,0.6727]
[1763950726352,0.90699264,2868.3,2867.4,0.1]
[1763950726535,0.90699264,2868.4,2867.4,0.1]
[1763950726739,0.90699264,2868.5,2867.5,0.4849]
[1763950726918,0.90699264,2868.4,2867.8,0.1]
[1763950727119,0.1947,2868.8,2867.6,0.1]
[1763950727318,3.68049709,2868.8,2867.6,0.1]
[1763950727555,0.1947,2868.8,2867.9,0.1]
[1763950727757,0.90699264,2868.7,2867.9,0.5849]
[1763950728136,3.48542911,2869.1,2867.9,0.5849]
[1763950728332,0.1906,2869.8,2868.3,0.1]
[1763950728536,6.87070406,2869.7,2867.9,0.4849]
[1763950728735,3.24686,2869.5,2868.3,0.1]
[1763950728938,2.76886,2869.5,2868.3,0.1]
[1763950729237,4.52286506,2869.2,2867.9,0.4849]
[1763950729435,0.90699264,2869.1,2867.6,0.4849]
[1763950729657,1.39629264,2869.1,2867.6,0.4849]
[1763950729856,1.08121577,2869.0,2867.6,0.5849]
[1763950730150,0.59191577,2869.0,2867.6,0.5849]
[1763950730339,6.97155604,2868.8,2867.6,0.5849]
[1763950730863,0.1906,2868.9,2867.7,0.1]
[1763950731377,0.1906,2868.9,2867.8,0.4849]
[1763950731536,0.90699264,2869.1,2868.2,0.1]
[1763950732078,0.90699264,2869.1,2868.2,0.4849]
[1763950732378,0.90699264,2869.1,2868.3,0.1]
[1763950732862,4.39243317,2869.1,2868.3,0.1]
[1763950733070,5.68142574,2869.1,2868.3,0.1]
[1763950733280,3.48468481,2869.7,2868.4,0.4849]
[1763950733574,0.90699264,2869.0,2868.1,0.6727]
[1763950733885,0.1906,2868.9,2868.1,0.1878]
[1763950734194,0.75264577,2868.9,2868.1,0.1878]
[1763950734475,0.90699264,2869.0,2868.2,0.5849]
[1763950734637,0.90699264,2869.0,2868.5,0.1]
[1763950734833,4.39253163,2869.0,2868.2,0.4849]
[1763950735270,4.39253163,2869.0,2868.2,0.1]
[1763950735271,0.1906,2868.9,2868.2,0.1]
[1763950735443,7.87807062,2869.0,2868.2,0.1878]
[1763950735650,1.28902357,2868.9,2868.2,0.1878]
[1763950736350,6.96936962,2869.7,2868.4,0.1]
[1763950736859,6.96936962,2869.7,2868.4,0.4849]
[1763950736860,0.90699264,2869.6,2868.4,0.4849]
[1763950737176,0.90699264,2869.6,2868.6,0.1]
[1763950738577,6.96985536,2869.5,2868.6,0.1]
[1763950738774,0.1906,2869.8,2868.6,0.1]
[1763950738974,0.1827,2869.9,2868.7,0.4849]
[1763950739176,0.90699264,2869.8,2869.0,0.1]
[1763950739567,0.90699264,2869.8,2869.1,0.1878]
[1763950739766,0.4893,2870.3,2869.1,0.1878]
[1763950739767,3.48387066,2870.4,2869.1,0.1878]
[1763950739963,1.25557971,2870.3,2869.3,0.1]
[1763950740163,0.90699264,2870.1,2869.1,0.1878]
[1763950740480,3.97364115,2870.0,2868.7,0.1878]
[1763950740645,0.34858707,2870.3,2869.0,0.1]
[1763950740844,0.34858707,2870.3,2868.7,3.6736664]
[1763950740845,0.002,2870.5,2870.2,0.1878]
[1763950741073,0.002,2870.5,2870.2,0.7727]
[1763950741253,0.002,2870.5,2869.8,0.1878]
[1763950741467,4.52286506,2870.3,2869.0,0.1]
[1763950741640,4.52286506,2870.3,2868.8,0.4849]
[1763950741840,1.89750915,2870.2,2868.9,0.1]
[1763950742042,1.89750915,2870.2,2869.0,0.4849]
[1763950742043,1.40820915,2870.2,2869.0,0.4849]
[1763950742390,0.90699264,2870.2,2869.4,0.1]
[1763950742588,0.90699264,2870.3,2869.4,0.1]
[1763950742977,0.4893,2870.4,2869.4,0.1]
[1763950743207,0.002,2870.5,2869.6,0.1]
[1763950743403,0.002,2870.5,2869.5,0.4849]
[1763950743609,0.002,2870.5,2869.9,0.1]
[1763950743782,0.002,2870.5,2870.3,0.1]
[1763950743984,0.002,2870.5,2869.5,0.4849]
[1763950744206,0.002,2870.5,2870.1,0.1]
[1763950744614,0.002,2870.5,2870.1,0.5849]
[1763950744934,0.002,2870.5,2869.7,0.1]
[1763950745084,0.002,2870.5,2870.0,0.1]
[1763950745284,0.002,2870.5,2869.5,0.1]
[1763950745517,0.002,2870.5,2870.0,0.4849]
[1763950745715,0.002,2870.5,2869.9,0.1]
[1763950746022,0.002,2870.5,2869.9,0.5849]
[1763950746319,0.002,2870.5,2869.7,0.1]
[1763950746521,0.002,2870.5,2870.1,0.1]
[1763950746949,0.002,2870.5,2870.2,0.4923]
[1763950747449,0.002,2870.5,2870.4,0.1]
[1763950747654,0.002,2870.5,2869.6,0.4923]
[1763950747807,0.002,2870.5,2869.9,0.1]
[1763950748012,0.002,2870.5,2869.5,0.1]
[1763950748246,0.18231388,2872.4,2870.1,0.90699264]
[1763950748546,7.03046356,2871.2,2870.4,0.1961]
[1763950748715,0.90699264,2871.1,2870.1,0.1961]
[1763950748915,0.90699264,2871.1,2870.3,0.1]
[1763950749262,3.54768395,2871.2,2870.1,0.1961]
[1763950749412,0.97019381,2871.1,2870.1,0.1961]
[1763950749613,0.97019381,2871.1,2870.1,0.6884]
[1763950749840,0.90699264,2871.1,2870.1,0.6884]
[1763950750153,1.44946956,2871.1,2870.3,0.1]
[1763950750647,0.90699264,2871.1,2870.3,0.1]
[1763950750853,0.90699264,2871.1,2868.5,3.48610432]
[1763950750854,0.187,2870.4,2869.5,0.1]
[1763950751415,0.187,2870.4,2869.4,0.1]
[1763950751818,0.495,2870.3,2869.4,0.1]
[1763950752014,0.495,2870.3,2869.1,0.2878]
[1763950752547,0.90699264,2870.1,2869.1,0.2878]
[1763950752748,2.23900746,2870.1,2869.1,0.2878]
[1763950753125,1.40199264,2870.1,2869.1,0.2878]
[1763950753321,1.40199264,2870.1,2869.1,0.1878]
[1763950753555,1.40199264,2870.1,2869.3,0.1]
[1763950754454,3.48407776,2870.2,2869.3,0.1]
[1763950754455,0.90699264,2870.2,2869.3,0.1]
[1763950754667,4.39115397,2870.2,2869.3,0.1]
[1763950755037,7.8753153,2870.2,2869.3,0.1]
[1763950755236,4.39115397,2870.2,2870.0,0.001]
[1763950755450,5.19736766,2870.2,2870.0,0.001]
[1763950755650,9.14192899,2870.2,2870.0,0.001]
[1763950755864,8.68152899,2870.2,2870.0,0.001]
[1763950756174,0.4604,2870.1,2870.0,0.001]
[1763950756623,4.85159179,2870.1,2870.0,0.001]
[1763950756819,5.85648773,2870.1,2870.0,0.001]
[1763950757570,5.39608773,2870.1,2870.0,0.001]
[1763950757775,5.85648773,2870.1,2870.0,0.001]
[1763950757940,5.39608773,2870.1,2870.0,0.001]
[1763950758324,5.85648773,2870.1,2870.0,0.001]
[1763950758524,10.37935279,2870.1,2870.0,0.001]
[1763950758724,13.68268279,2870.1,2870.0,0.001]
[1763950758922,9.15981773,2870.1,2870.0,0.001]
[1763950759134,13.68268279,2870.1,2870.0,0.001]
[1763950759858,15.17346479,2870.1,2870.0,0.001]
[1763950760357,7.89799,2869.9,2869.8,0.001]
[1763950760563,8.95549707,2869.9,2869.8,0.001]
[1763950760740,14.67323603,2869.9,2869.8,0.001]
[1763950760934,10.26190003,2869.9,2869.8,0.001]
[1763950761152,8.66979767,2869.9,2869.8,0.001]
[1763950761337,0.90699264,2869.6,2868.4,0.1966]
[1763950761657,0.90699264,2869.3,2868.2,0.1878]
[1763950761887,0.90699264,2869.3,2868.3,0.4548]
[1763950762089,12.48418636,2869.9,2868.3,0.5548]
[1763950762290,0.90699264,2869.8,2868.7,0.1]
[1763950762797,0.90699264,2869.6,2868.7,0.1]
[1763950762994,3.48399141,2870.3,2868.2,0.1878]
[1763950762995,7.42831276,2870.3,2868.2,0.1878]
[1763950763197,0.60008776,2870.4,2869.3,0.1]
[1763950763198,0.76634962,2870.4,2869.3,0.1]
[1763950763494,0.76634962,2870.4,2868.8,0.4548]
[1763950763495,0.187,2870.4,2868.8,0.4548]
[1763950763693,0.90699264,2870.3,2869.4,0.1]
[1763950763881,0.85220944,2870.2,2869.0,0.1]
[1763950764090,1.31260944,2870.2,2868.9,0.1]
[1763950764466,1.31260944,2870.2,2869.2,0.1]
[1763950764667,1.31260944,2870.2,2869.3,0.1966]
[1763950764866,3.48419915,2870.1,2869.3,0.6514]
[1763950765066,6.9683983,2870.1,2869.3,0.7514]
[1763950765267,1.68905341,2870.0,2869.3,0.1966]
[1763950766399,2.14945341,2870.0,2868.9,0.5548]
[1763950766575,0.90699264,2869.7,2868.6,0.1]
[1763950766778,0.90699264,2869.7,2868.4,0.4548]
[1763950766779,0.90699264,2869.5,2868.4,0.4548]
[1763950766975,0.90699264,2869.5,2868.5,0.1]
[1763950767203,7.87640401,2869.7,2868.6,0.1]
[1763950767407,0.43917989,2869.5,2868.4,0.5548]
[1763950767702,0.43917989,2869.5,2868.5,0.4548]
[1763950767907,0.43917989,2869.5,2868.5,0.5548]
[1763950768215,0.43917989,2869.5,2868.8,0.1]
[1763950768384,0.43917989,2869.5,2868.5,0.4548]
[1763950768385,0.4962045,2869.4,2868.5,0.4548]
[1763950768917,0.90699264,2869.2,2868.3,0.2966]
[1763950769093,0.90699264,2869.2,2868.1,0.4558]
[1763950769405,0.4604,2869.1,2868.1,0.001]
[1763950769606,0.90699264,2869.0,2868.1,0.001]
[1763950769905,0.90699264,2868.8,2868.1,0.001]
[1763950770068,0.90699264,2868.8,2868.1,0.1976]
[1763950770270,0.90699264,2868.8,2868.1,0.001]
[1763950770471,0.4604,2868.7,2868.1,0.001]
[1763950770672,0.90699264,2868.6,2868.1,0.001]
[1763950770870,0.90699264,2868.3,2868.1,0.001]
[1763950771295,0.4604,2868.2,2868.1,0.001]
[1763950771782,4.98326506,2868.2,2868.1,0.001]
[1763950772504,4.02419078,2868.5,2868.1,0.001]
[1763950773235,7.51038871,2868.5,2868.1,0.001]
[1763950773531,0.58902577,2868.4,2868.1,0.001]
[1763950774101,0.90699264,2868.6,2868.1,0.1976]
[1763950774335,0.4604,2869.0,2868.1,0.6524]
[1763950774635,4.39274863,2868.9,2868.2,0.1]
[1763950774810,8.00814622,2869.3,2868.2,0.4548]
[1763950775140,0.71258896,2869.9,2868.5,0.1]
[1763950775434,0.90699264,2869.6,2868.3,0.1]
[1763950775796,0.4604,2869.5,2868.3,0.4548]
[1763950776023,0.49832651,2869.4,2868.3,0.5548]
[1763950776440,0.49832651,2869.4,2868.3,0.4548]
[1763950776613,0.49832651,2869.4,2868.4,0.1]
[1763950776998,0.90699264,2869.0,2868.1,0.1976]
[1763950777311,0.90699264,2868.7,2868.1,0.001]
[1763950777932,3.93783812,2869.0,2868.1,0.6769]
[1763950778097,0.90699264,2868.9,2868.1,0.6769]
[1763950778299,1.39879264,2868.9,2868.1,0.001]
[1763950778495,0.90699264,2868.6,2868.1,0.1889]
[1763950778696,0.90699264,2868.6,2868.2,0.1]
[1763950778898,0.90699264,2868.6,2868.2,0.588]
[1763950779143,0.90699264,2868.6,2868.2,0.1]
[1763950779299,0.90699264,2868.6,2868.1,0.1889]
[1763950779495,4.93611054,2868.6,2868.1,0.001]
[1763950779726,1.44997841,2868.6,2868.2,0.488]
[1763950779930,0.90699264,2868.6,2868.2,0.488]
[1763950780124,0.90699264,2868.6,2868.3,0.1]
[1763950780327,4.52286506,2868.7,2868.3,0.1]
[1763950780328,0.45228651,2869.0,2868.4,0.488]
[1763950780528,0.90699264,2869.1,2868.3,0.1]
[1763950780740,4.52286506,2868.7,2868.1,0.001]
[1763950781307,6.9720421,2868.6,2868.1,0.001]
[1763950781747,3.48602105,2868.6,2868.1,0.001]
[1763950781910,8.008786,2868.7,2868.1,0.001]
[1763950782106,4.52286506,2868.7,2868.1,0.001]
[1763950782307,4.52286506,2868.7,2868.2,0.588]
[1763950783438,0.90699264,2868.6,2868.1,0.001]
[1763950784145,0.90699264,2868.4,2868.1,0.001]
[1763950784850,1.37719264,2868.4,2868.1,0.001]
[1763950785148,1.96719841,2868.4,2868.1,0.001]
[1763950785351,3.48639516,2868.3,2868.1,0.001]
[1763950785512,0.90699264,2868.3,2868.1,0.001]
[1763950785851,0.4702,2868.2,2868.1,0.001]
[1763950786215,5.9000577,2868.2,2868.1,0.001]
[1763950786416,6.86684155,2868.2,2868.1,0.001]
[1763950786834,5.4298577,2868.2,2868.1,0.001]
[1763950787551,9.72616491,2868.2,2868.1,0.001]